Workbook

Sheet Unit 1- STR
B1: 2025-01-01 | C1: Feb-2025 | D1: Mar-2025 | E1: Apr-2025 | F1: May-2025 | G1: Jun-2025 | H1: Jul-2025 | I1: Aug-2025 | J1: Sep-2025 | K1: Oct-2025 | L1: Nov-2025 | M1: Dec-2025 | N1: Annual Total
A2: Rent Collected | B2: 0 | C2: 0 | D2: 0 | E2: 620.8 | F2: 567.45 | G2: 2337.7 | H2: 1328.9 | I2: 1474.15 | J2: 2944 | K2: 0 | L2: 0 | M2: 0 | N2: =SUM(B2:M2) -> 9273
A3: Other Income | B3: 0 | C3: 0 | D3: 0 | E3: 0 | F3: 50 | G3: 0 | H3: 0 | I3: 0 | J3: 0 | K3: 0 | L3: 0 | M3: 0 | N3: =SUM(B3:M3) -> 50
A4: Vacancy/Concessions (−) | B4: =-B4 -> 0 | C4: =-C4 -> 0 | D4: 0 | E4: 0 | F4: 0 | G4: 0 | H4: 0 | I4: 0 | J4: 0 | K4: -176 | L4: =-L4 -> 0 | M4: 0 | N4: -176
A5: Effective Income = | B5: 0 | C5: 0 | D5: 0 | E5: 620.8 | F5: 617.45 | G5: 2337.7 | H5: 1328.9 | I5: 1474.15 | J5: 2944 | K5: -176 | L5: 0 | M5: 0 | N5: 9147
A6: Repairs & Maintenance (−) | B6: =-B6 -> 0 | C6: =-C6 -> 0 | D6: -199.44 | E6: -17 | F6: -86 | G6: 0 | H6: -159 | I6: 0 | J6: 0 | K6: 0 | L6: 0 | M6: 0 | N6: 9273
A7: Utilities (−) | B7: -128.29 | C7: -250.038 | D7: -165.556 | E7: -76.382 | F7: -105.38 | G7: -129.032 | H7: -150.822 | I7: -166.102 | J7: -166.53 | K7: -182.392 | L7: -140.612 | M7: -122.112 | N7: =SUM(B7:M7) -> -1783.248
A8: Turnover/Make-Ready (−) | B8: 0 | C8: 0 | D8: 0 | E8: 0 | F8: 0 | G8: -94.8 | H8: -129.6 | I8: 0 | J8: -64.8 | K8: -151.2 | L8: 0 | M8: 0 | N8: =SUM(B8:M8) -> -440.4
A9: Misc Expense (−) | B9: 0 | C9: -1766.658 | D9: -604.588 | E9: -1031.24 | F9: -619.44 | G9: -467.35 | H9: -626.59 | I9: -554.84 | J9: -524.99 | K9: -660.27 | L9: -464.79 | M9: -443.94 | N9: =SUM(B9:M9) -> -7764.696
A10: Unit-Level Opex = | B10: =SUM(B6:B9) -> 0 | C10: =SUM(C6:C9) -> 0 | D10: -969.584 | E10: =SUM(E6:E9) -> -1124.622 | F10: -810.82 | G10: -691.182 | H10: -1066.012 | I10: -720.942 | J10: -756.32 | K10: -993.862 | L10: -605.402 | M10: -566.052 | N10: =SUM(B10:M10) -> 0
A11: Net Contribution = | B11: =SUM(B5+B10) -> 0 | C11: =SUM(C5+C10) -> -2016.696 | D11: -969.584 | E11: =SUM(E5+E10) -> -503.822 | F11: -193.37 | G11: 1646.518 | H11: 262.888 | I11: 753.208 | J11: 2187.68 | K11: -1169.862 | L11: -605.402 | M11: -566.052 | N11: =SUM(B11:M11) -> 0

Sheet Unit 2-STR
B1: Jan-2025 | C1: Feb-2025 | D1: Mar-2025 | E1: Apr-2025 | F1: May-2025 | G1: Jun-2025 | H1: Jul-2025 | I1: Aug-2025 | J1: Sep-2025 | K1: Oct-2025 | L1: Nov-2025 | M1: Dec-2025 | N1: Annual Total
A2: Rent Collected | B2: 0 | C2: 0 | D2: 0 | E2: 227.95 | F2: 1293.45 | G2: 1718.7 | H2: 1483.51 | I2: 1410.67 | J2: 1727.07 | K2: 1354.12 | L2: 1687.81 | M2: 1346.36 | N2: =SUM(B2:M2) -> 12249.64
A3: Other Income | B3: 0 | C3: 0 | D3: 0 | E3: 0 | F3: 0 | G3: 25 | H3: 0 | I3: 0 | J3: 0 | K3: 0 | L3: 0 | M3: 0 | N3: =SUM(B3:M3) -> 25
A4: Vacancy/Concessions (−) | B4: 0 | C4: 0 | D4: 0 | E4: 0 | F4: 0 | G4: 0 | H4: 0 | I4: 0 | J4: 0 | K4: -163 | L4: 0 | M4: 0 | N4: -163
A5: Effective Income = | B5: 0 | C5: 0 | D5: 0 | E5: 227.95 | F5: 1293.45 | G5: 1743.7 | H5: 1483.51 | I5: 1410.67 | J5: 1727.07 | K5: 1191.12 | L5: 1687.81 | M5: 1346.36 | N5: 12111.64
A6: Repairs & Maintenance (−) | B6: 0 | C6: 0 | D6: -199.44 | E6: -17 | F6: 0 | G6: 0 | H6: 0 | I6: 0 | J6: 0 | K6: 0 | L6: 0 | M6: 0 | N6: -216.44
A7: Utilities (−) | B7: -128.29 | C7: -250.038 | D7: -165.556 | E7: -76.382 | F7: -105.38 | G7: -129.032 | H7: -150.822 | I7: -166.102 | J7: -166.53 | K7: -182.392 | L7: -140.612 | M7: -122.112 | N7: -1783.248
A8: Turnover/Make-Ready (−) | B8: 0 | C8: 0 | D8: 0 | E8: -129.6 | F8: -129.6 | G8: -64.8 | H8: 0 | I8: 0 | J8: 0 | K8: 0 | L8: 0 | M8: 0 | N8: -324
A9: Misc Expense (−) | B9: 0 | C9: -283.618 | D9: -105.55 | E9: -1112.16 | F9: -615.81 | G9: -325.54 | H9: -324.86 | I9: -324.12 | J9: -323.18 | K9: -323.18 | L9: -322.98 | M9: -458.29 | N9: -4519.288
A10: Unit-Level Opex = | B10: =SUM(B6:B9) -> -128.29 | C10: =SUM(C6:C9) -> -533.656 | D10: -470.546 | E10: -1335.142 | F10: -850.79 | G10: -519.372 | H10: -475.682 | I10: -490.222 | J10: -489.71 | K10: -505.572 | L10: -463.592 | M10: -580.402 | N10: =SUM(B10:M10) -> -6842.976
A11: Net Contribution = | B11: =SUM(B5+B10) -> -128.29 | C11: =SUM(C5+C10) -> -533.656 | D11: -470.546 | E11: -1107.192 | F11: 442.66 | G11: 1224.328 | H11: 1007.828 | I11: 920.448 | J11: 1237.36 | K11: 685.548 | L11: 1224.218 | M11: =SUM(M5+M10) -> 765.958 | N11: 5268.664

Sheet Unit 3-LTR
B1: Jan-2025 | C1: Feb-2025 | D1: Mar-2025 | E1: Apr-2025 | F1: May-2025 | G1: Jun-2025 | H1: Jul-2025 | I1: Aug-2025 | J1: Sep-2025 | K1: Oct-2025 | L1: Nov-2025 | M1: Dec-2025 | N1: Annual Total
A2: Rent Collected | B2: 0 | C2: 0 | D2: 0 | E2: 0 | F2: 0 | G2: 0 | H2: 0 | I2: 522.5 | J2: 1045 | K2: 1045 | L2: 1045 | M2: 1045 | N2: =SUM(B2:M2) -> 4702.5
A3: Other Income | B3: 0 | C3: 0 | D3: 0 | E3: 0 | F3: 0 | G3: 0 | H3: 0 | I3: 0 | J3: 0 | K3: 0 | L3: 0 | M3: 0 | N3: =SUM(B3:M3) -> 0
A4: Vacancy/Concessions (−) | B4: 0 | C4: 0 | D4: 0 | E4: 0 | F4: 0 | G4: 0 | H4: 0 | I4: 0 | J4: 0 | K4: 0 | L4: 0 | M4: 0 | N4: 0
A5: Effective Income = | B5: 0 | C5: 0 | D5: 0 | E5: 0 | F5: 0 | G5: 0 | H5: 0 | I5: 0 | J5: 0 | K5: 1495.2 | L5: 0 | M5: 0 | N5: 1495.2
A6: Repairs & Maintenance (−) | B6: 0 | C6: 0 | D6: -199.44 | E6: -17 | F6: 0 | G6: 0 | H6: 0 | I6: 0 | J6: 0 | K6: -465 | L6: 0 | M6: 0 | N6: -681.44
A7: Utilities (−) | B7: -128.29 | C7: -250.038 | D7: -165.556 | E7: -76.382 | F7: -105.38 | G7: -129.032 | H7: -150.822 | I7: -166.102 | J7: -166.53 | K7: -182.392 | L7: -140.612 | M7: -122.112 | N7: -1783.248
A8: Turnover/Make-Ready (−) | B8: 0 | C8: 0 | D8: 0 | E8: 0 | F8: 0 | G8: 0 | H8: 0 | I8: 0 | J8: 0 | K8: 0 | L8: 0 | M8: 0 | N8: 0
A9: Misc Expense (−) | B9: 0 | C9: -283.618 | D9: -91.2 | E9: -553.34 | F9: 0 | G9: -21 | H9: -29 | I9: -550.5 | J9: 0 | K9: 0 | L9: 0 | M9: 0 | N9: -1528.658
A10: Unit-Level Opex = | B10: =SUM(B6:B9) -> -128.29 | C10: =SUM(C6:C9) -> -533.656 | D10: -456.196 | E10: -646.722 | F10: -105.38 | G10: -150.032 | H10: -179.822 | I10: -716.602 | J10: -166.53 | K10: -647.392 | L10: -140.612 | M10: -122.112 | N10: -3993.346
A11: Net Contribution = | B11: =SUM(B5+B10) -> -128.29 | C11: =SUM(C5+C10) -> -533.656 | D11: -456.196 | E11: -646.722 | F11: -105.38 | G11: -150.032 | H11: -179.822 | I11: -716.602 | J11: -166.53 | K11: 847.808 | L11: -140.612 | M11: -122.112 | N11: -2498.146

Sheet Unit 4-STR
B1: Jan-2025 | C1: Feb-2025 | D1: Mar-2025 | E1: Apr-2025 | F1: May-2025 | G1: Jun-2025 | H1: Jul-2025 | I1: Aug-2025 | J1: Sep-2025 | K1: Oct-2025 | L1: Nov-2025 | M1: Dec-2025 | N1: Annual Total
A2: Rent Collected | B2: 0 | C2: 0 | D2: 0 | E2: 651.84 | F2: 2048.11 | G2: 1152.36 | H2: 2085.5 | I2: 1639.3 | J2: 1362.85 | K2: 1437.12 | L2: 1358 | M2: 1856.18 | N2: =SUM(B2:M2) -> 13591.26
A3: Other Income | B3: 0 | C3: 0 | D3: 0 | E3: 0 | F3: 0 | G3: 0 | H3: 500 | I3: 0 | J3: 0 | K3: 0 | L3: 0 | M3: 0 | N3: =SUM(B3:M3) -> 500
A4: Vacancy/Concessions (−) | B4: 0 | C4: 0 | D4: 0 | E4: 0 | F4: 0 | G4: 0 | H4: 0 | I4: 0 | J4: 0 | K4: 0 | L4: 0 | M4: 0 | N4: 0
A5: Effective Income = | B5: 0 | C5: 0 | D5: 0 | E5: 651.84 | F5: 2048.11 | G5: 1152.36 | H5: 2585.5 | I5: 1639.3 | J5: 1362.85 | K5: 1437.12 | L5: 1358 | M5: 1856.18 | N5: 14091.26
A6: Repairs & Maintenance (−) | B6: 0 | C6: 0 | D6: -199.44 | E6: -17 | F6: 0 | G6: 0 | H6: 0 | I6: 0 | J6: -285 | K6: 0 | L6: 0 | M6: 0 | N6: -501.44
A7: Utilities (−) | B7: -128.29 | C7: -250.03 | D7: -165.556 | E7: -76.382 | F7: -105.38 | G7: -129.032 | H7: -150.822 | I7: -166.102 | J7: -166.53 | K7: -182.392 | L7: -140.612 | M7: -122.112 | N7: -1783.24
A8: Turnover/Make-Ready (−) | B8: 0 | C8: 0 | D8: 0 | E8: -129.6 | F8: -64.8 | G8: 0 | H8: 0 | I8: 0 | J8: 0 | K8: 0 | L8: 0 | M8: 0 | N8: -194.4
A9: Misc Expense (−) | B9: 0 | C9: -283.618 | D9: -105.55 | E9: -985.52 | F9: -664.32 | G9: -385.08 | H9: -384.4 | I9: -383.66 | J9: -382.72 | K9: -382.72 | L9: -382.52 | M9: -544.9 | N9: -4885.008
A10: Unit-Level Opex = | B10: =SUM(B6:B9) -> -128.29 | C10: =SUM(C6:C9) -> -533.648 | D10: -470.546 | E10: -1208.502 | F10: -834.5 | G10: -514.112 | H10: -535.222 | I10: -549.762 | J10: -834.25 | K10: -565.112 | L10: -523.132 | M10: -667.012 | N10: -7364.088
A11: Net Contribution = | B11: =SUM(B5+B10) -> -128.29 | C11: =SUM(C5+C10) -> -533.648 | D11: -470.546 | E11: -556.662 | F11: 1213.61 | G11: 638.248 | H11: 2050.278 | I11: 1089.538 | J11: 528.6 | K11: 872.008 | L11: 834.868 | M11: 1189.168 | N11: 6727.172

Sheet Back unit-LTR
B1: Jan-2025 | C1: Feb-2025 | D1: Mar-2025 | E1: Apr-2025 | F1: May-2025 | G1: Jun-2025 | H1: Jul-2025 | I1: Aug-2025 | J1: Sep-2025 | K1: Oct-2025 | L1: Nov-2025 | M1: Dec-2025 | N1: Annual Total
A2: Rent Collected | B2: 0 | C2: 0 | D2: 0 | E2: 737.5 | F2: 1525 | G2: 1525 | H2: 1525 | I2: 1525 | J2: 1525 | K2: 1525 | L2: 1525 | M2: 1525 | N2: =SUM(B2:M2) -> 12937.5
A3: Other Income | B3: 0 | C3: 0 | D3: 0 | E3: 0 | F3: 0 | G3: 0 | H3: 0 | I3: 0 | J3: 0 | K3: 0 | L3: 0 | M3: 0 | N3: 0
A4: Vacancy/Concessions (−) | B4: 0 | C4: 0 | D4: 0 | E4: 0 | F4: 0 | G4: 0 | H4: 0 | I4: 0 | J4: 0 | K4: 0 | L4: 0 | M4: 0 | N4: 0
A5: Effective Income = | B5: =SUM(B2:B4) -> 0 | C5: =SUM(C2:C4) -> 0 | D5: 0 | E5: =SUM(E2:E4) -> 737.5 | F5: 1525 | G5: 1525 | H5: 1525 | I5: 1525 | J5: 1525 | K5: 1525 | L5: 1525 | M5: 1525 | N5: =SUM(B5:M5) -> 12937.5
A6: Repairs & Maintenance (−) | B6: 0 | C6: 0 | D6: -199.44 | E6: -176.34 | F6: 0 | G6: 0 | H6: 0 | I6: 0 | J6: 0 | K6: 0 | L6: 0 | M6: 0 | N6: =SUM(B6:M6) -> -375.78
A7: Utilities (−) | B7: -128.29 | C7: -250.038 | D7: -192.696 | E7: -76.382 | F7: -105.38 | G7: -129.032 | H7: -150.822 | I7: -166.102 | J7: -166.53 | K7: -182.392 | L7: -140.612 | M7: -122.112 | N7: =SUM(B7:M7) -> -1810.388
A8: Turnover/Make-Ready (−) | B8: 0 | C8: 0 | D8: 0 | E8: 0 | F8: 0 | G8: 0 | H8: 0 | I8: 0 | J8: 0 | K8: 0 | L8: 0 | M8: 0 | N8: 0
A9: Misc Expense (−) | B9: -5.21 | C9: -288.828 | D9: -96.41 | E9: -399.21 | F9: -5.49 | G9: -320.42 | H9: -320.42 | I9: -320.42 | J9: -320.42 | K9: -320.42 | L9: -320.42 | M9: 0 | N9: =SUM(B9:M9) -> -2717.668
A10: Unit-Level Opex = | B10: =SUM(B6:B9) -> -133.5 | C10: =SUM(C6:C9) -> -538.866 | D10: -488.546 | E10: -651.932 | F10: -110.87 | G10: -449.452 | H10: -471.242 | I10: -486.522 | J10: -486.95 | K10: -502.812 | L10: -461.032 | M10: =SUM(M6:M9) -> -122.112 | N10: =SUM(B10:M10) -> -4903.836
A11: Net Contribution = | B11: =SUM(B5+B10) -> -133.5 | C11: =SUM(C5+C10) -> -538.866 | D11: -488.546 | E11: 85.568 | F11: 1414.13 | G11: 1075.548 | H11: 1053.758 | I11: 1038.478 | J11: 1038.05 | K11: 1022.188 | L11: 1063.968 | M11: 1402.888 | N11: =SUM(B11:M11) -> 8033.664
